Cogmind - Beta 16.1 @@@ ROGUE MODE // 2026.03.06 @ 18:17:57 Player: star Result: Destroyed by S7-TBE(R) with Subdweller Shrapnel Launcher Performance ------------- Evolutions (0) 0 Regions Visited (2) 400 Robots Destroyed (14) 70 Value Destroyed (527) 527 Prototype IDs (0) 0 Alien Tech Used (0) 0 Bonus (0) 0 TOTAL SCORE: 997 Bonus ------- None Cogmind --------- Core Integrity 0/250 Matter 300/300 Energy 77/100 System Corruption 0% Temperature Cool (0) Movement Rolling (110) Location -10/Subcaves Parts ------- > --- POWER (1) -------- (None) > --- PROPULSION (2) --- Subdweller Monowheel Subdweller Monowheel > --- UTILITY (2) ------ Improved Heat Sink Medium Storage Unit > --- WEAPON (2) ------- Medium Laser Particle Gun > --- INVENTORY (10) --- Small Storage Unit Huge Storage Unit Subdweller Optics Makeshift Hacking Suite Small Laser Assault Rifle Assault Rifle Assault Rifle Flamer Peak State ------------ > --- POWER ------------ (None) > --- PROPULSION ------- Subdweller Monowheel Subdweller Monowheel > --- UTILITY ---------- Improved Heat Sink Medium Storage Unit > --- WEAPON ----------- Medium Laser Particle Gun > --- INVENTORY -------- Small Storage Unit Huge Storage Unit Makeshift Hacking Suite Small Laser Assault Rifle Assault Rifle Assault Rifle [Rating: 12] Favorites ----------- Power Ion Engine Engine Ion Engine Propulsion Compact Wheel Wheel Compact Wheel Utility Medium Storage Unit Device Improved Heat Sink Storage Medium Storage Unit Protection Weapon Shielding Weapon Particle Gun Energy Gun Particle Gun Ballistic Gun Assault Rifle Build | -11 -10 -10 ------- Run | Yrd Mat Sub Slots Evolved . | . . . Power . | . . . Propulsion . | . . . Utility . | . . . Weapon . | . . . Parts Attached 17 | 5 8 4 Power 2 | 1 1 . Engine 2 | 1 1 . Core . | . . . Reactor . | . . . Propulsion 4 | 2 . 2 Treads . | . . . Leg . | . . . Wheel 4 | 2 . 2 Hover . | . . . Flight . | . . . Utility 6 | . 4 2 Device 2 | . . 2 Storage 2 | . 2 . Processor . | . . . Hackware . | . . . Protection 2 | . 2 . Artifact . | . . . Weapon 5 | 2 3 . Energy Gun 4 | 1 3 . Energy Cannon . | . . . Ballistic Gun 1 | 1 . . Ballistic Cannon . | . . . Launcher . | . . . Special Weapon . | . . . Impact Weapon . | . . . Slashing Weapon . | . . . Piercing Weapon . | . . . Special Melee Weapon . | . . . Unidentified Prototypes . | . . . Parts Lost 7 | . 3 4 Power 2 | . 1 1 Propulsion 2 | . 1 1 Utility 1 | . . 1 Weapon 2 | . 1 1 Highest Loss Streak 2 | . 2 2 To Critical Strikes . | . . . Average Backups 6 | 1 5 7 Power . | . . . Propulsion . | . . . Utility 2 | . 2 2 Weapon 3 | . 3 4 Tool/Special . | . . . Unused Backups 6 | . . 6 Power . | . . . Propulsion . | . . . Utility 2 | . . 2 Weapon 4 | . . 4 Tool/Special . | . . . Average Slot Usage (%) 87 | . 91 79 Engine 10 | . 14 3 Wheel 21 | . 22 19 Device 2 | . . 6 Storage 13 | . 13 14 Protection 10 | . 12 7 Energy Gun 17 | . 15 24 Ballistic Gun 9 | . 12 3 Peak Build Rating 12 | 5 10 12 Average Rating 7 | 3 7 9 On Entrance 4 | . 5 8 Avg Prop Armor Cover (%) . | . . . Naked Turns . | . . . Heaviest Build 22 | 9 22 21 Greatest Support 40 | 26 26 40 Greatest Overweight (x) 1 | . 1 1 Average Overweight (x) . | . . . Largest Inventory Capacity 10 | 5 10 10 Average Capacity 9 | 5 9 10 Most Carried 9 | 3 8 9 Average Carried 6 | 1 5 7 Final Capacity 10 | 5 10 10 Final Carried 9 | 3 8 9 Class Distribution -------------------- 100% | Mutant Dominant Class ---------------- Mutant | -10/Materials Mutant | -10/Subcaves Resources | -11 -10 -10 ----------- Run | Yrd Mat Sub Matter Collected 525 | 186 239 100 Remotely . | . . . Salvage Created 604 | . 372 232 Parts 26 | . 19 7 Haulers Intercepted . | . . . Recyclers Shooed . | . . . Parts Field Recycled . | . . . Retrieved Matter . | . . . Parts Self-Destructed . | . . . Prevented . | . . . Parts Restored . | . . . Kills | -11 -10 -10 ------- Run | Yrd Mat Sub Combat Hostiles Destroyed 13 | . 8 5 Guns 13 | . 8 5 Classes Destroyed 3 | . 2 1 Operator 1 | . 1 . Grunt 8 | . 8 . Subdweller 5 | . . 5 Best Kill Streak 5 | . 5 2 Combat Bots Only 4 | . 4 2 Max Kills in Single Turn 1 | . 1 1 Gunslinging . | . . . Exploded . | . . . Melee . | . . . Uniques/NPCs Destroyed . | . . . Combat | -11 -10 -10 -------- Run | Yrd Mat Sub Hostile Shots Fired 74 | . 54 20 Missed 19 | . 16 3 Hits 55 | . 38 17 Projectile 55 | . 38 17 AOE 2 | . . 2 Damage Taken 940 | . 501 439 Core 255 | . 32 223 Absorbed by Shields . | . . . Redirected to Shielding 63 | . 41 22 Core Remaining (%) 100 | 100 . . Volleys Fired 64 | . 48 16 Largest 2 | . 2 2 Hottest 130 | . 130 130 Shots Fired 120 | . 89 31 Gun 120 | . 89 31 Cannon . | . . . Launcher . | . . . Special . | . . . Kinetic 40 | . 40 . Thermal 80 | . 49 31 Explosive . | . . . Electromagnetic . | . . . Robot Hit Streak 12 | . 9 12 Robot Miss Streak 3 | . 3 2 Penetration Max . | . . . Secondary Targets 2 | . 1 1 Max Gunslinging Chain 1 | . 1 1 Shots Hit Robots 81 | . 56 25 Core Hits 31 | . 21 10 Critical Kills . | . . . Critical Parts Destroyed 2 | . 2 . Critical Strikes 5 | . 4 1 Burn 3 | . 2 1 Destroy 2 | . 2 . Melee Attacks . | . . . Impact . | . . . Slashing . | . . . Piercing . | . . . Sneak Attacks . | . . . Combat Hostiles . | . . . Follow-up Attacks . | . . . Damage Inflicted 1129 | . 740 389 Guns 1129 | . 740 389 Cannons . | . . . Explosions . | . . . Melee . | . . . Ramming . | . . . Kinetic 263 | . 263 . Thermal 866 | . 477 389 Explosive . | . . . Electromagnetic . | . . . Impact . | . . . Slashing . | . . . Piercing . | . . . Highest Corruption . | . . . Average Corruption . | . . . Corruption Purged . | . . . Corruption Blocked . | . . . Overload Shots . | . . . Overflow Damage . | . . . Projectiles . | . . . Explosions . | . . . Melee . | . . . Knockbacks . | . . . Impact . | . . . Kinetic . | . . . Secondary . | . . . Self-Inflicted Damage . | . . . Shots . | . . . Rammed . | . . . Targets Rammed . | . . . Kicked . | . . . Crushed . | . . . Highest Temperature 343 | . 343 22 Average Temperature 101 | . 114 8 Received Heat Transfer 336 | . 282 54 Effects 2 | . 2 . Shutdowns 1 | . 1 . Interference 1 | . 1 . Siege Activations . | . . . Martial Activations . | . . . Shielding Activations . | . . . Robots Disrupted . | . . . Combat Hostiles . | . . . Robots Corrupted . | . . . Combat Hostiles . | . . . Parts Fried . | . . . Impact Corruptions . | . . . Robots Melted . | . . . Combat Hostiles . | . . . Parts Melted 8 | . 4 4 Heat Transferred 2442 | . 1406 1036 Parts Sabotaged . | . . . Parts Stolen . | . . . Parts Stripped . | . . . Power Chain Reactions . | . . . Alert | -11 -10 -10 ------- Run | Yrd Mat Sub Maximum Alert Level . | . . . Low Security (%) 100 | 100 100 . Level 1 . | . . . Level 2 . | . . . Level 3 . | . . . Level 4 . | . . . Level 5 . | . . . High Security . | . . . Max Security . | . . . Peak Influence 80 | . 80 . Initial . | . . . Average 23 | . 25 . Influence Increases 205 | . 205 . Destroy 0b10 Robot/C 160 | . 160 . Destroy 0b10 Robot/NC 5 | . 5 . Destroy Leader 40 | . 40 . Influence Decreases 205 | . 205 . Time Decay 175 | . 175 . Lost Part 30 | . 30 . Squads Dispatched 1 | . 1 . Investigation . | . . . Extermination . | . . . Reinforcement 1 | . 1 . Assault . | . . . Garrison . | . . . Intercept . | . . . Searches Triggered . | . . . Construction Impeded . | . . . Haulers Reinforced . | . . . Active Scanning Responses . | . . . Cargo Convoy Interrupts . | . . . Stealth | -11 -10 -10 --------- Run | Yrd Mat Sub Distress Signals 2 | . 2 . Communications Jammed . | . . . Distress Signals . | . . . Times Spotted 21 | . 15 6 Peak Tracking Total 4 | . 4 2 Tactical Retreats . | . . . Traps | -11 -10 -10 ------- Run | Yrd Mat Sub Traps Triggered . | . . . Indirectly . | . . . Trap Hack Attempts . | . . . Triggered . | . . . Disarmed . | . . . Reprogrammed . | . . . Reused . | . . . Traps Extracted . | . . . Installed . | . . . Triggered . | . . . Machines | -11 -10 -10 ---------- Run | Yrd Mat Sub Machines Disabled . | . . . Max in Single Turn . | . . . Machines Repaired . | . . . Machines Dismantled . | . . . Machines Sabotaged . | . . . Overloaded Fab Kills . | . . . Hacking | -11 -10 -10 --------- Run | Yrd Mat Sub Machines Accessed . | . . . Terminals . | . . . Fabricators . | . . . Repair Stations . | . . . Recycling Units . | . . . Scanalyzers . | . . . Garrison Access . | . . . Total Hacks . | . . . Successful . | . . . Failed . | . . . Catastrophic . | . . . Database Lockouts . | . . . Manual . | . . . Terminals . | . . . Fabricators . | . . . Repair Stations . | . . . Recycling Units . | . . . Scanalyzers . | . . . Garrison Access . | . . . Terminal Hacks . | . . . Fabricator Hacks . | . . . Repair Station Hacks . | . . . Recycling Unit Hacks . | . . . Scanalyzer . | . . . Garrison Access Hacks . | . . . Unauthorized Hacks . | . . . Terminals . | . . . Fabricators . | . . . Repair Stations . | . . . Recycling Units . | . . . Scanalyzers . | . . . Garrison Access . | . . . Data Cores Recovered . | . . . Used . | . . . Hacking Detections . | . . . Full Trace Events . | . . . Feedback Events . | . . . Feedback Blocked . | . . . Robot Schematics Acquired . | . . . Robots Built . | . . . Authchips . | . . . Time . | . . . Total Robot Build Rating . | . . . Part Schematics Acquired . | . . . Parts Built . | . . . Authchips . | . . . Time . | . . . Total Part Build Rating . | . . . Part Studies Acquired . | . . . Parts Repaired . | . . . Time . | . . . Parts Recycled . | . . . Recycled Matter . | . . . Retrieved Matter . | . . . Retrieved Components . | . . . Parts Scanalyzed . | . . . Part Schematics Acquired . | . . . Parts Damaged . | . . . Bothacking | -11 -10 -10 ------------ Run | Yrd Mat Sub Used RIF Installer . | . . . Robots Hacked . | . . . Non-combat . | . . . Combat . | . . . Robot Hacks Applied . | . . . Relay Couplers Released . | . . . Fabnet Peak Effective % . | . . . Robots Rewired . | . . . Allies Hacked . | . . . Hacks Repelled . | . . . Allies | -11 -10 -10 -------- Run | Yrd Mat Sub Total Allies . | . . . Largest Group . | . . . Highest-Rated Group . | . . . Highest-Rated Ally . | . . . Total Orders . | . . . Ally Attacks . | . . . Total Damage . | . . . Kills . | . . . Allies Corrupted . | . . . Allies Melted . | . . . Intel | -11 -10 -10 ------- Run | Yrd Mat Sub Active Infowar (turns) 15 | . . 15 Optics 15 | . . 15 Robot Analysis Total . | . . . Derelict Logs Recovered 2 | . . 2 Drone Launches . | . . . Drone Recoveries . | . . . Exploration | -11 -10 -10 ------------- Run | Yrd Mat Sub Turns Passed 843 | 41 556 246 Spaces Moved 479 | 35 288 156 Core 3 | 3 . . Treads . | . . . Legs . | . . . Wheels 476 | 32 288 156 Hover . | . . . Flight . | . . . Fastest Speed 50 | 50 90 100 Average Speed 100 | 87 96 110 Slowest Speed 115 | 100 115 115 Overloaded Moves . | . . . Propulsion Burnouts . | . . . Robots Hopped . | . . . Potential Cave-ins . | . . . Cave-ins Triggered . | . . . Exploration Rate (%) 28 | 3 68 13 Regions Visited 2 Branch Regions 1 Pre-discovered Areas 1 | . . 1 Known Exits Taken . | . . . Unknown Exits Taken 2 | 1 1 . Scrap Searched 1 | . . 1 Spaces Dug . | . . . Terrain Destroyed . | . . . Melee . | . . . Projectile . | . . . AOE . | . . . Terrain Rammed . | . . . Walls Destroyed . | . . . Machines Disabled . | . . . Actions | -11 -10 -10 --------- Run | Yrd Mat Sub Total 712 | 42 472 198 Wait 139 | . 123 16 Move 477 | 34 287 156 Hop . | . . . Pick Up 10 | 3 4 3 Fast Attach 8 | 5 1 2 Attach 5 | . 3 2 Detach . | . . . Swap 9 | . 6 3 Drop . | . . . Fire 64 | . 48 16 Melee . | . . . Ram . | . . . Kick . | . . . Crush . | . . . Escape Stasis . | . . . Rewire . | . . . Trap . | . . . Miscellaneous . | . . . Route ------- -11/Scrapyard -10/Materials (discovered 3 exits: [*Mat] / [*Min] / [*Sub]) -10/Subcaves History --------- Turn | Location | Event 27 | -11/Scrapyard | Discovered new exit (range 15) 42 | -11/Scrapyard | Entered Materials 236 | -10/Materials | Discovered new exit (range 15) 325 | -10/Materials | Discovered new exit (range 3) 336 | -10/Materials | Build established: Mutant 574 | -10/Materials | Discovered new exit (range 9) 598 | -10/Materials | Entered Subcaves 616 | -10/Subcaves | Learned Materials terminal intel 708 | -10/Subcaves | Core integrity fell below 50% 746 | -10/Subcaves | Learned location of Zion (-7) 790 | -10/Subcaves | Disturbed a concealed Subdweller 843 | -10/Subcaves | Core integrity fell below 20% 844 | -10/Subcaves | Destroyed by S7-TBE(R) with Subdweller Shrapnel Launcher Last Messages --------------- 00733_ Acquired 20 matter. 00739_ Subatomizers dissect the Sub. Monowheel. 00739_ Acquired Sub. Monowheel. 00746_ Acquired derelict log, extracted data. World map updated: -7/Zion. 00794_ Com. Wheel destroyed. 00798_ 4D-4GV(R) destroyed. 00800_ Subatomizers dissect the Sub. Optics. 00802_ Acquired 5 matter. 00804_ Acquired Sub. Monowheel. 00805_ Searching scrap... 00805_ Found Flamer. 00805_ Found Mak. Hacking Suite. 00805_ Found 55 Matter. 00806_ Acquired 10 matter. 00808_ Acquired Mak. Hacking Suite. 00812_ Acquired Flamer. 00818_ Acquired Sub. Optics. 00831_ Acquired 10 matter. 00838_ Subatomizers dissect the Disposable Heat Sink. Map ----- +----------------------------------------------------+ | ????????????????????????????????????? | | ????????????????????????????????????? | | ????????????????????????????????????? | | ????????????????????????????????????? | | ????????????????????????????????????? | | ????????????????????????????????????? | | ????????????????????????????????????? | | ????????????????????????????????????? | | ????????????????????????????????????? | | ????????????????????????????????????? | | ????????????????????????????????????? | | ?????????????????????????? ????????? | | ????????????????????????? #????????? | | ???????????????????????? ###??????? | | ???????????????????????? #??????? | | ????????????????????##? ##?????? | | ???????????????????? ## ????? | | ???????????????????? ??????? | | ???????????????##### #?????????? | | ???????????????# # #????????????? | | ?????????####### #?????????????? | | ?????????#;<& ##< ##?????????????? | | ?????????#;R#& #?????????????? | | ?????????#; ;; #" ##?????????????? | | ?????????#; !;;# #??????????????? | | ?????????#; @;; ###??????????????? | | ????????# ;;;;;# ####?????????????? | | ????????## # #??????"??????? | | ?????????####### ##??? "#?????? | | ???????????????# ## " ?????? | | ???????????????# #??????????? | | ???????????????# #??????????? | | ???????????????## ##??????????? | | ????????????????# ### #???????????? | | ????????????????# ##?# #???????????? | | ????????????????# ##?##????? ????? | | ????????????????# #??????? ???? | | ????????????????## #????? ???? | | ?????????????????# ##???? #??? | | ?????????????????# ##??# ????? | | ?????????????????## ## #???????? | | ?????????????????# #????????? | | ?????????????????# # #????????? | | ?????????????????## ####?? #???????? | | ??????????????????# #??????????????? | | ?????????????????## #??????????????? | | ?????????????????# ##??????????????? | | ?????????????????# ###?????????????? | | ??????????????#??## ##????????????? | | ??????????????# ??# ##???????????? | +----------------------------------------------------+ Best States ------------- Heat Dissipation 39 Energy Generation 10 Energy Capacity 250 Matter Stores 300 Matter Capacity 300 Sight Range 21 Terrain Scan Density 10 Power Shielding 33 Weapon Shielding 33 Evasion (%) 42 Item Schematics ----------------- None Robot Schematics ------------------ None Fabricated ------------ Nothing Repaired ---------- Nothing Studied --------- None Alien Tech Used ----------------- None Achievements -------------- None Challenges ------------ None Game ------ Seed ImprovedImprovedSpear Manual? 0 Play Time 00:06:58 Cumulative 165.1 hours Start 2026.03.06 @ 18:12:40 End 2026.03.06 @ 18:17:57 Sessions 1 Manual Loads 0 Difficulty Rogue Special Mode None Game No. 285 Rogue 285 Adventurer 0 Explorer 0 Win Type - Total 1 Types 1/0/0/0/0/0/0/0/0/0 Lore% 55 Gallery% 56 Achievement% 35 Wizard Run 0 Options --------- Layout 0 ASCII 0 Keyboard 1 Movement Numpad Keybinds 0 Fullscreen 2 Font 18/SmallcapsGlow Map View 76x50 Zoom Use 0% Tactical HUD 1 Map Filters NONE Filters NONE Steam 1 RUN: 03aedd60-2df3-4dd4-a129-a6eb625e4732